bitfinex/quotes_SOLUSD_20241118
["timestamp","ask_amount","ask_price","bid_price","bid_amount"]
[1731905821818,0.12549,242.59,242.54,15.71722539]
[1731905822014,0.25098,242.59,242.54,15.71722539]
[1731905822214,0.25098,242.59,242.56,15.71722539]
[1731905822430,0.25098,242.59,242.58,15.71722539]
[1731905825053,0.12549,242.57,242.54,19.84012539]
[1731905825226,0.12549,242.57,242.56,15.71722539]
[1731905826544,0.12549,242.57,242.54,4.1229]
[1731905826855,0.12549,242.57,242.56,15.71722539]
[1731905827018,0.12549,242.57,242.52,15.71722539]
[1731905827019,0.21916462,242.56,242.52,15.71722539]
[1731905827225,0.12549,242.55,242.52,15.71722539]
[1731905827527,0.12549,242.53,242.52,15.71722539]
[1731905827732,0.25098,242.53,242.52,15.71722539]
[1731905828335,0.34465462,242.53,242.52,15.71722539]
[1731905829236,70.0,242.58,242.47,14.4343]
[1731905829237,0.34465462,242.51,242.5,15.71722539]
[1731905829426,0.25098,242.51,242.5,15.71722539]
[1731905829743,15.2281,242.62,242.5,15.71722539]
[1731905830042,15.2281,242.62,242.47,14.4343]
[1731905830043,0.25098,242.61,242.55,15.71722539]
[1731905830221,0.09367462,242.58,242.53,15.71722539]
[1731905830426,0.21916462,242.58,242.53,15.71722539]
[1731905830621,0.09367462,242.56,242.53,15.71722539]
[1731905831052,0.25098,242.55,242.53,15.71722539]
[1731905833563,0.25098,242.55,242.53,30.14832539]
[1731905834252,0.25098,242.55,242.54,9.79135631]
[1731905834551,0.34465462,242.55,242.54,9.79135631]
[1731905835623,0.21916462,242.54,242.52,9.79135631]
[1731905835947,0.34465462,242.53,242.52,9.79135631]
[1731905836139,0.12549,242.51,242.5,9.79135631]
[1731905837254,0.25098,242.55,242.5,9.79135631]
[1731905837442,0.25098,242.55,242.54,9.79135631]
[1731905837645,160.2,242.56,242.54,9.79135631]
[1731905837836,160.2,242.61,242.54,9.79135631]
[1731905838033,160.2,242.6,242.56,9.79135631]
[1731905838236,4.1209,242.67,242.58,9.79135631]
[1731905838443,0.09367462,242.65,242.58,9.79135631]
[1731905838645,160.2,242.66,242.58,9.79135631]
[1731905839253,0.09367462,242.63,242.56,13.91395631]
[1731905839649,0.09367462,242.61,242.54,24.22165631]
[1731905839857,0.34465462,242.59,242.54,24.22165631]
[1731905840056,3.97325244,242.59,242.54,24.22165631]
[1731905841156,3.97325244,242.59,242.44,0.1]
[1731905841157,160.2,242.63,242.58,9.79135631]
[1731905841453,0.09367462,242.62,242.58,9.79135631]
[1731905842359,0.09367462,242.6,242.58,9.79135631]
[1731905842543,0.12549,242.59,242.58,9.79135631]
[1731905843746,160.2,242.65,242.5,20.0]
[1731905843943,9.79135631,242.64,242.54,9.79135631]
[1731905844255,160.29367462,242.63,242.54,9.79135631]
[1731905844847,0.09367462,242.61,242.54,9.79135631]
[1731905845057,0.12549,242.6,242.54,9.79135631]
[1731905845265,0.09367462,242.57,242.51,10.3084]
[1731905845560,0.09367462,242.55,242.51,10.3084]
[1731905845861,0.21916462,242.55,242.51,10.3084]
[1731905846039,0.25098,242.54,242.51,10.3084]
[1731905846236,0.25098,242.54,242.51,14.4319]
[1731905847160,0.25098,242.54,242.52,9.79135631]
[1731905848038,0.25098,242.54,242.53,4.1232]
[1731905849051,160.2,242.56,242.53,14.4312]
[1731905849259,160.2,242.56,242.54,9.79135631]
[1731905850259,0.09367462,242.64,242.55,14.4299]
[1731905850455,0.34465462,242.62,242.56,9.79135631]
[1731905850843,0.34465462,242.62,242.55,14.4299]
[1731905851040,10.13601093,242.62,242.55,14.4299]
[1731905851943,10.13601093,242.62,242.55,10.3071]
[1731905852458,0.09367462,242.57,242.53,4.1232]
[1731905852643,0.25098,242.56,242.53,4.1232]
[1731905853462,0.25098,242.56,242.5,9.79135631]
[1731905853655,0.25098,242.56,242.51,14.4323]
[1731905855662,0.25098,242.56,242.53,9.79135631]
[1731905856165,24.027864,242.56,242.53,9.79135631]
[1731905856559,0.09367462,242.57,242.53,13.91435631]
[1731905857065,0.09367462,242.57,242.53,24.22235631]
[1731905858778,160.2,242.59,242.56,9.79135631]
[1731905859055,25.01945631,242.69,242.58,9.79135631]
[1731905859056,160.2,242.66,242.58,9.79135631]
[1731905859263,160.2,242.65,242.61,9.79135631]
[1731905859437,160.2,242.65,242.63,9.79135631]
[1731905859635,0.09367462,242.67,242.63,9.79135631]
[1731905860244,160.2,242.68,242.63,13.91275631]
[1731905860864,0.09367462,242.67,242.63,4.1214]
[1731905861166,0.09367462,242.67,242.61,20.09555631]
[1731905861167,0.09367462,242.67,242.61,24.21725631]
[1731905861465,33.91289493,242.67,242.59,9.79135631]
[1731905861645,33.91289493,242.67,242.57,13.91375631]
[1731905861839,24.12153862,242.65,242.57,13.91375631]
[1731905862667,24.12153862,242.65,242.57,24.22005631]
[1731905863356,24.12153862,242.65,242.59,9.79135631]
[1731905863759,24.12153862,242.65,242.61,9.79135631]
[1731905864458,24.12153862,242.65,242.61,13.91315631]
[1731905865046,24.12153862,242.65,242.61,4.1218]
[1731905865251,184.32153862,242.65,242.61,4.1218]
[1731905866566,188.44273862,242.65,242.57,24.21995631]
[1731905866870,9.88503093,242.63,242.52,10.3081]
[1731905867053,24.12153862,242.6,242.52,10.3081]
[1731905868060,24.12153862,242.6,242.52,14.4314]
[1731905868650,28.24353862,242.6,242.52,14.4314]
[1731905868849,28.24353862,242.6,242.52,10.3081]
[1731905868850,24.12153862,242.56,242.52,10.3081]
[1731905869049,24.12153862,242.54,242.52,10.3081]
[1731905869469,24.12153862,242.54,242.5,4.1236]
[1731905869976,24.027864,242.54,242.53,13.91455631]
[1731905870357,24.027864,242.54,242.53,4.1232]
[1731905870673,24.027864,242.54,242.53,13.91455631]
[1731905872170,0.12549,242.54,242.53,13.91455631]
[1731905872877,160.2,242.55,242.53,24.22255631]
[1731905874066,0.12549,242.54,242.47,20.6211]
[1731905874271,0.34465462,242.59,242.52,9.79135631]
[1731905874566,24.027864,242.59,242.54,9.79135631]
[1731905876378,24.027864,242.59,242.55,14.4299]
[1731905876574,160.2,242.63,242.58,9.79135631]
[1731905876777,160.2,242.66,242.61,9.79135631]
[1731905877077,160.2,242.69,242.63,9.79135631]
[1731905877279,9.79135631,242.68,242.59,9.79135631]
[1731905877456,0.09367462,242.67,242.59,9.79135631]
[1731905877661,9.79135631,242.68,242.59,9.79135631]
[1731905878067,0.09367462,242.65,242.55,35.0442]
[1731905878377,0.21916462,242.63,242.56,9.79135631]
[1731905878573,0.21916462,242.63,242.57,4.1225]
[1731905878958,0.12549,242.62,242.57,4.1225]
[1731905879161,0.25098,242.62,242.57,4.1225]
[1731905880460,0.25098,242.62,242.57,14.4288]
[1731905881383,0.12549,242.58,242.55,4.1227]
[1731905881557,0.25098,242.58,242.55,4.1227]
[1731905881759,0.25098,242.58,242.53,4.1231]
[1731905881963,0.25098,242.56,242.53,4.1231]
[1731905883171,0.25098,242.56,242.52,10.3081]
[1731905885883,0.25098,242.56,242.52,20.09945631]
[1731905886260,0.25098,242.56,242.52,10.3081]
[1731905887070,0.25098,242.56,242.52,20.09945631]
[1731905888161,0.12549,242.54,242.52,10.3081]
[1731905888672,0.12549,242.54,242.52,24.22275631]
[1731905890073,0.12549,242.54,242.52,10.3081]
[1731905892291,24.027864,242.56,242.52,10.3081]
[1731905898281,0.25098,242.56,242.52,10.3081]
[1731905899292,0.25098,242.56,242.52,6.26829246]
[1731905899673,0.25098,242.56,242.48,14.4341]
[1731905899882,0.25098,242.56,242.51,6.26829246]
[1731905900272,0.12549,242.56,242.53,6.26829246]
[1731905900783,6.36196708,242.6,242.52,14.4317]
[1731905901996,0.09367462,242.58,242.52,14.4317]
[1731905903176,0.09367462,242.58,242.53,6.26829246]
[1731905903376,0.25098,242.59,242.53,6.26829246]
[1731905904888,0.25098,242.59,242.54,4.123]
[1731905905884,0.25098,242.59,242.54,14.4305]
[1731905906081,0.09367462,242.58,242.54,14.4305]
[1731905906284,0.09367462,242.58,242.54,10.3075]
[1731905906691,0.09367462,242.58,242.5,10.3092]
[1731905906692,6.36196708,242.58,242.5,10.3092]
[1731905906893,0.09367462,242.56,242.5,10.3092]
[1731905907779,0.09367462,242.54,242.5,10.3092]
[1731905908078,0.25098,242.53,242.5,10.3092]
[1731905910381,24.027864,242.53,242.5,10.3092]
[1731905911591,0.25098,242.51,242.45,10.311]
[1731905912008,0.25098,242.51,242.46,6.26829246]
[1731905913004,0.25098,242.51,242.47,4.1242]
[1731905913832,160.2,242.63,242.49,6.26829246]
[1731905913995,160.2,242.62,242.55,6.26829246]
[1731905914202,160.29367462,242.61,242.55,6.26829246]
[1731905914402,0.09367462,242.59,242.53,6.26829246]
[1731905915003,0.09367462,242.57,242.53,10.39139246]
[1731905915184,24.027864,242.56,242.53,10.39139246]
[1731905917314,24.027864,242.56,242.47,10.3105]
[1731905917619,24.027864,242.56,242.52,6.26829246]
[1731905917778,0.09367462,242.56,242.52,6.26829246]
[1731905919001,0.09367462,242.56,242.5,6.26829246]
[1731905921106,0.09367462,242.56,242.51,4.1235]
[1731905921286,0.09367462,242.56,242.51,14.4323]
[1731905921701,0.25098,242.57,242.51,14.4323]
[1731905922305,23.776884,242.56,242.51,14.4323]
[1731905922526,0.25098,242.55,242.51,14.4323]
[1731905922808,0.25098,242.55,242.51,10.3088]
[1731905922985,23.776884,242.54,242.51,10.3088]
[1731905923181,0.25098,242.53,242.51,10.3088]
[1731905923915,0.12549,242.53,242.52,6.26829246]
[1731905924112,0.12549,242.53,242.51,14.4323]
[1731905924688,0.12549,242.53,242.44,20.6236]
[1731905925003,0.12549,242.53,242.5,6.26829246]
[1731905926211,0.12549,242.53,242.51,4.1235]
[1731905927800,0.12549,242.53,242.5,6.26829246]
[1731905927997,0.12549,242.53,242.49,14.4331]
[1731905928387,24.12153862,242.55,242.49,14.4331]
[1731905928596,24.12153862,242.53,242.49,10.3094]
[1731905930716,0.25098,242.49,242.45,6.26829246]
[1731905931417,0.25098,242.5,242.45,6.26829246]
[1731905931584,0.25098,242.5,242.45,10.39279246]
[1731905934124,0.25098,242.51,242.49,6.26829246]
[1731905934418,206.1765588,242.52,242.49,6.26829246]
[1731905934621,206.1765588,242.52,242.51,6.26829246]
[1731905934821,45.9765588,242.52,242.51,6.26829246]
[1731905935703,46.1020488,242.52,242.51,6.26829246]
[1731905935989,46.2275388,242.52,242.51,6.26829246]
[1731905938320,0.25098,242.51,242.48,10.3097]
[1731905938497,0.25098,242.51,242.5,6.26829246]
[1731905939018,24.027864,242.51,242.47,6.26829246]
[1731905940437,184.227864,242.51,242.47,6.26829246]
[1731905941029,0.09367462,242.5,242.45,10.3113]
[1731905941225,0.25098,242.49,242.45,10.3113]
[1731905941416,0.25098,242.49,242.45,20.70409246]
[1731905942528,0.25098,242.5,242.47,6.26829246]
[1731905942812,0.25098,242.5,242.49,6.26829246]
[1731905943612,0.25098,242.5,242.45,14.4358]
[1731905943811,0.25098,242.5,242.48,6.26829246]
[1731905944431,0.25098,242.5,242.48,10.39229246]
[1731905946106,0.25098,242.5,242.48,4.124]
[1731905946305,0.25098,242.5,242.49,6.26829246]
[1731905949129,45.9765588,242.52,242.5,14.4329]
[1731905949332,45.9765588,242.52,242.51,6.26829246]
[1731905957251,45.9765588,242.52,242.45,36.6105]
[1731905957548,45.9765588,242.52,242.51,6.26829246]
[1731905958434,45.9765588,242.52,242.51,10.39179246]
[1731905959436,45.9765588,242.52,242.51,35.4649623]
[1731905963352,45.9765588,242.52,242.51,35.5649623]
[1731905964032,45.9765588,242.52,242.51,4.1235]
[1731905964354,45.9765588,242.52,242.51,10.39179246]
[1731905965430,16.3291,242.67,242.55,0.1]
[1731905965750,25.42999246,242.73,242.64,6.26829246]
[1731905966052,160.2,242.72,242.64,6.26829246]
[1731905966364,164.32,242.72,242.64,10.38949246]
[1731905966749,24.027864,242.71,242.64,10.38949246]
[1731905967130,0.09367462,242.7,242.62,10.3039]
[1731905967352,0.09367462,242.7,242.62,16.57219246]
[1731905967535,24.027864,242.68,242.62,14.4255]
[1731905967845,184.227864,242.68,242.62,14.4255]
[1731905968048,0.09367462,242.67,242.59,4.122]
[1731905968256,0.12549,242.64,242.59,4.122]
[1731905968553,0.25098,242.64,242.59,4.122]
[1731905969834,0.25098,242.64,242.57,10.306]
[1731905970037,0.25098,242.64,242.57,14.4285]
[1731905971966,0.25098,242.64,242.57,30.91721]
[1731905976730,0.25098,242.62,242.57,14.4285]
[1731905978156,6.26829246,242.58,242.53,4.1231]
[1731905978478,0.25098,242.57,242.53,14.4311]
[1731905978770,6.26829246,242.58,242.53,14.4311]
[1731905978771,0.25098,242.59,242.53,14.4311]
[1731905978947,0.25098,242.6,242.55,6.26829246]
[1731905980154,0.25098,242.6,242.53,20.69939246]
[1731905982563,0.25098,242.62,242.53,20.69939246]
[1731905985350,6.36196708,242.61,242.53,20.69939246]
[1731905985548,24.027864,242.6,242.53,20.69939246]
[1731905985748,0.25098,242.6,242.53,20.69939246]
[1731905986681,0.12549,242.6,242.57,6.26829246]
[1731905986961,160.2,242.61,242.57,6.26829246]
[1731905987273,160.2,242.61,242.59,6.26829246]
[1731905987458,4.1208,242.67,242.6,4.122]
[1731905987459,0.25098,242.65,242.6,4.122]
[1731905987944,24.027864,242.65,242.6,4.122]
[1731905990065,24.027864,242.65,242.57,6.26829246]
[1731905990248,6.26829246,242.63,242.55,6.26829246]
[1731905990454,24.027864,242.62,242.53,41.31549246]
[1731905991293,24.027864,242.62,242.55,6.26829246]
[1731905991575,24.027864,242.62,242.56,14.4293]
[1731905991950,0.25098,242.62,242.56,14.4293]
[1731905994076,6.51927246,242.62,242.56,14.4293]
[1731905994673,166.71927246,242.62,242.56,14.4293]
[1731905997378,0.25098,242.6,242.52,20.69999246]
[1731905998558,23.776884,242.59,242.52,14.4317]
[1731905998878,0.25098,242.58,242.52,14.4317]
[1731905999056,0.12549,242.58,242.54,6.26829246]
[1731905999251,0.12549,242.6,242.56,6.26829246]
[1731905999465,160.2,242.61,242.58,6.26829246]
[1731905999651,0.09367462,242.65,242.58,6.26829246]
[1731906000272,160.2,242.64,242.58,6.26829246]
[1731906000781,0.25098,242.63,242.59,4.1221]
[1731906001659,160.2,242.64,242.59,14.4275]
[1731906001865,160.2,242.68,242.59,20.69579246]
[1731906002051,160.2,242.67,242.59,20.69579246]
[1731906002264,6.26829246,242.71,242.63,6.26829246]
[1731906002457,160.2,242.72,242.63,6.26829246]
[1731906002856,160.2,242.72,242.64,14.4246]
[1731906003053,160.2,242.74,242.64,14.4246]
[1731906003274,166.46829246,242.74,242.65,6.26829246]
[1731906004155,166.46829246,242.74,242.66,14.4233]
[1731906005878,0.25098,242.73,242.66,14.4233]
[1731906006380,160.2,242.74,242.66,14.4233]
[1731906006571,160.2,242.76,242.69,6.26829246]
[1731906006757,166.46829246,242.78,242.66,14.4233]
[1731906006958,160.2,242.78,242.69,6.26829246]
[1731906007264,160.2,242.77,242.69,6.26829246]
[1731906008078,166.46829246,242.77,242.69,6.26829246]
[1731906008381,160.2,242.84,242.73,6.26829246]
[1731906008579,6.26829246,242.82,242.74,14.4186]
[1731906009153,160.2,242.83,242.74,14.4186]
[1731906009367,166.46829246,242.83,242.74,14.4186]
[1731906010161,6.26829246,242.79,242.74,14.4186]
[1731906010368,6.26829246,242.77,242.74,10.299]
[1731906010658,0.25098,242.76,242.74,10.299]
[1731906011278,0.25098,242.76,242.74,14.4186]
[1731906012164,0.12549,242.74,242.7,6.26829246]
[1731906012366,0.25098,242.76,242.7,6.26829246]
[1731906012577,0.12549,242.76,242.7,6.26829246]
[1731906012775,4.1181,242.83,242.68,14.4222]
[1731906012776,6.26829246,242.73,242.68,14.4222]
[1731906012972,6.26829246,242.71,242.68,10.3016]
[1731906013171,0.25098,242.7,242.68,10.3016]
[1731906015081,0.25098,242.72,242.68,10.3016]
[1731906015884,6.51927246,242.72,242.68,10.3016]
[1731906016887,0.12549,242.72,242.68,10.3016]
[1731906017092,160.2,242.73,242.68,10.3016]
[1731906018193,160.2,242.73,242.68,14.4222]
[1731906018488,0.12549,242.73,242.68,14.4222]
[1731906019093,0.12549,242.73,242.68,10.3016]
[1731906019388,0.25098,242.75,242.68,10.3016]
[1731906020167,0.25098,242.76,242.68,14.4222]
[1731906020373,0.25098,242.76,242.69,6.26829246]
[1731906021985,0.25098,242.74,242.68,14.4222]
[1731906022171,0.25098,242.74,242.68,10.3016]
[1731906023775,0.25098,242.74,242.68,14.4222]
[1731906024684,0.25098,242.76,242.69,6.26829246]
[1731906024894,0.25098,242.77,242.69,6.26829246]
[1731906025091,6.26829246,242.81,242.71,6.26829246]
[1731906025299,0.09367462,242.82,242.73,6.26829246]
[1731906025471,166.46829246,242.83,242.73,6.26829246]
[1731906025790,160.2,242.82,242.74,14.4186]
[1731906025970,166.46829246,242.82,242.74,14.4186]
[1731906026408,6.26829246,242.82,242.74,14.4186]
[1731906027671,0.25098,242.81,242.74,14.4186]
[1731906027877,0.25098,242.83,242.75,6.26829246]
[1731906028167,0.12549,242.83,242.75,22.20709246]
[1731906028385,160.2,242.91,242.77,6.26829246]
[1731906028598,164.317,242.9,242.79,6.26829246]
[1731906028898,6.26829246,242.86,242.77,6.26829246]
[1731906029069,6.26829246,242.86,242.78,14.4162]
[1731906029269,160.2,242.89,242.78,14.4162]
[1731906029696,6.26829246,242.88,242.79,12.77269246]
[1731906030578,6.26829246,242.86,242.79,6.5044]
[1731906030786,23.99604862,242.92,242.79,6.5044]
[1731906030993,0.12549,242.86,242.8,14.4151]
[1731906033277,0.25098,242.88,242.8,14.4151]
[1731906033806,0.25098,242.88,242.81,6.26829246]
[1731906034007,0.12549,242.88,242.82,14.4138]
[1731906034209,0.12549,242.9,242.83,6.26829246]
[1731906034375,6.26829246,242.91,242.83,6.26829246]
[1731906034800,6.26829246,242.88,242.82,14.4138]
[1731906035389,6.26829246,242.9,242.82,14.4138]
[1731906035602,0.12549,242.89,242.82,14.4138]
[1731906035793,6.26829246,242.88,242.82,14.4138]
[1731906036499,6.26829246,242.87,242.82,14.4138]
[1731906037483,6.26829246,242.84,242.82,14.4138]
[1731906038781,6.26829246,242.85,242.82,10.2956]
[1731906038995,6.26829246,242.87,242.82,10.2956]
[1731906040389,0.25098,242.91,242.82,10.2956]
[1731906040587,6.26829246,242.86,242.82,10.2956]
[1731906040808,0.12549,242.87,242.82,10.2956]
[1731906041613,6.26829246,242.86,242.82,10.2956]
[1731906041791,0.12549,242.87,242.82,10.2956]
[1731906041981,0.12549,242.93,242.82,10.2956]
[1731906042187,0.12549,242.89,242.82,10.2956]
[1731906042807,6.26829246,242.91,242.82,16.66389246]
[1731906043003,6.26829246,242.91,242.82,16.56389246]
[1731906043210,6.26829246,242.9,242.82,20.68209246]
[1731906043515,6.26829246,242.9,242.82,14.4138]
[1731906044013,0.12549,242.89,242.82,14.4138]
[1731906045702,0.25098,242.91,242.83,6.26829246]
[1731906045889,0.12549,242.91,242.84,4.1179]
[1731906046085,0.12549,242.91,242.84,14.4127]
[1731906046918,6.26829246,242.92,242.84,14.4127]
[1731906046919,0.25098,242.92,242.84,14.4127]
[1731906049005,4.36758,242.92,242.84,14.4127]
[1731906049210,4.36758,242.92,242.85,6.26829246]
[1731906050213,4.36758,242.92,242.85,22.72799246]
[1731906052718,4.36758,242.92,242.85,26.84569246]
[1731906056725,4.36758,242.92,242.85,22.72799246]
[1731906058435,4.36758,242.92,242.85,16.4597]
[1731906058725,0.25098,242.89,242.81,4.1183]
[1731906058910,0.25098,242.89,242.81,10.38659246]
[1731906060002,0.25098,242.91,242.81,10.38659246]
[1731906060207,15.4723,242.8,242.59,0.1]
[1731906060523,15.4723,242.8,242.53,0.80888745]
[1731906060524,0.12549,242.78,242.66,6.26829246]
[1731906060732,0.25098,242.75,242.66,6.26829246]
[1731906061029,0.25098,242.75,242.68,6.26829246]
[1731906061402,0.25098,242.77,242.68,6.26829246]
[1731906061618,0.25098,242.75,242.68,6.26829246]
[1731906062026,0.25098,242.73,242.62,19.9657]
[1731906062322,0.25098,242.73,242.65,6.26829246]
[1731906063130,0.25098,242.75,242.67,6.26829246]
[1731906063327,6.51927246,242.77,242.67,6.26829246]
[1731906063506,6.51927246,242.77,242.69,6.26829246]
[1731906063707,0.25098,242.77,242.69,6.26829246]
[1731906064123,4.37018,242.77,242.69,6.26829246]
[1731906065234,0.09367462,242.74,242.67,6.26829246]
[1731906065525,0.09367462,242.74,242.64,10.38959246]
[1731906065526,0.25098,242.73,242.64,10.38959246]
[1731906065702,0.12549,242.68,242.62,10.3041]
[1731906065897,0.25098,242.68,242.62,10.3041]
[1731906068708,0.25098,242.69,242.62,16.57239246]
[1731906069515,0.25098,242.69,242.62,20.69399246]
[1731906071310,160.2,242.75,242.64,10.38949246]
[1731906071506,160.2,242.74,242.7,6.26829246]
[1731906071733,21.74059246,242.8,242.7,6.26829246]
[1731906071734,160.2,242.79,242.7,6.26829246]
[1731906071918,0.09367462,242.77,242.7,6.26829246]
[1731906072121,160.2,242.78,242.7,6.26829246]
[1731906072425,0.09367462,242.77,242.7,6.26829246]
[1731906072723,0.34465462,242.77,242.7,6.26829246]
[1731906073031,0.34465462,242.77,242.68,14.422]
[1731906073032,160.2,242.77,242.68,14.422]
[1731906073220,160.2,242.77,242.74,6.26829246]
[1731906073944,4.1187,242.8,242.74,6.26829246]
[1731906074342,4.1187,242.8,242.74,9.77613808]
[1731906074521,0.09367462,242.81,242.74,9.77613808]
[1731906075240,0.12549,242.8,242.74,9.77613808]
[1731906075444,0.25098,242.8,242.74,9.77613808]
[1731906076728,0.12549,242.78,242.72,9.77613808]
[1731906077128,0.25098,242.78,242.7,13.89633808]
[1731906077314,0.25098,242.78,242.7,24.19703808]
[1731906079044,0.34465462,242.77,242.7,24.19703808]
[1731906079255,24.12153862,242.77,242.7,20.07683808]
[1731906079422,0.34465462,242.74,242.66,4.1208]
[1731906079750,0.12549,242.74,242.66,4.1208]
[1731906080044,0.12549,242.74,242.67,9.77613808]
[1731906080536,0.25098,242.74,242.67,9.77613808]
[1731906080920,0.25098,242.74,242.68,4.1206]
[1731906081121,0.25098,242.72,242.66,10.3024]
[1731906081822,0.25098,242.72,242.66,14.4233]
[1731906082734,0.25098,242.73,242.67,9.77613808]
[1731906083139,0.25098,242.73,242.67,13.89673808]
[1731906084743,0.34465462,242.74,242.67,13.89673808]
[1731906085424,0.34465462,242.74,242.67,24.19873808]
[1731906086749,0.07868402,242.68,242.67,24.19873808]
[1731906090556,0.07868402,242.68,242.67,10.302]
[1731906090769,0.20417402,242.68,242.67,10.302]
[1731906092368,0.20417402,242.68,242.65,9.77613808]
[1731906092740,0.20417402,242.68,242.67,9.77613808]
[1731906092741,0.07868402,242.68,242.67,9.77613808]
[1731906094462,0.07868402,242.68,242.67,13.89693808]
[1731906095260,0.07868402,242.68,242.67,33.89693808]
[1731906096358,0.06426676,242.7,242.69,20.0]
[1731906096557,0.08661581,242.72,242.7,44.07055862]
[1731906096773,0.08661581,242.72,242.71,26.25583054]
[1731906097239,15.0362,242.89,242.73,20.0]
[1731906097440,15.0362,242.89,242.76,0.1]
[1731906097657,15.0362,242.89,242.76,51.3791527]
[1731906098248,15.0362,242.89,242.76,39.63822896]
[1731906099159,15.0362,242.89,242.76,43.65742896]
[1731906099544,9.8627891,242.88,242.76,33.88831448]
[1731906099751,9.8627891,242.88,242.76,13.88831448]
[1731906099939,0.09367462,242.85,242.76,13.88831448]
[1731906100249,9.76911448,242.86,242.76,13.88831448]
[1731906100455,0.09367462,242.85,242.76,13.88831448]
[1731906102340,9.76911448,242.84,242.76,13.88831448]
[1731906102544,0.09367462,242.83,242.74,9.76911448]
[1731906103754,0.09367462,242.83,242.75,14.418]
[1731906103957,6.46847462,242.83,242.75,14.418]
[1731906105448,9.76911448,242.86,242.76,9.76911448]
[1731906106340,0.09367462,242.85,242.76,9.76911448]
[1731906106847,0.15792561,242.77,242.76,9.76911448]
[1731906107550,0.07511254,242.77,242.76,9.76911448]
[1731906113747,0.07511254,242.77,242.76,29.76911448]
[1731906114058,0.07511254,242.77,242.76,39.53822896]
[1731906114866,0.07511254,242.77,242.76,40.46180134]
[1731906116655,0.08934065,242.78,242.77,24.1191]
[1731906117059,0.08189637,242.79,242.78,0.1]
[1731906117248,0.08189637,242.79,242.78,9.86911448]
[1731906117650,0.08189637,242.79,242.78,29.86911448]
[1731906118274,0.08189637,242.79,242.78,26.35071973]
[1731906120573,0.08189637,242.79,242.78,20.0]
[1731906120763,0.08189637,242.79,242.78,26.25071973]
[1731906121980,0.08189637,242.79,242.78,20.0]
[1731906122187,0.08189637,242.79,242.78,26.25071973]
[1731906122681,0.08189637,242.79,242.78,26.35071973]
[1731906124158,0.08189637,242.79,242.78,26.25071973]
[1731906127360,6.25071973,242.92,242.78,26.25071973]
[1731906127583,0.34465462,242.89,242.82,6.25071973]
[1731906128288,15.74385462,242.89,242.82,6.25071973]
[1731906128872,15.74385462,242.89,242.83,14.4133]
[1731906130181,15.65018,242.89,242.84,6.25071973]
[1731906130990,15.65018,242.89,242.85,14.4121]
[1731906131514,15.3992,242.89,242.86,6.25071973]
[1731906132474,160.2,242.91,242.88,6.25071973]
[1731906132677,6.609,242.94,242.88,6.25071973]
[1731906132870,15.3992,242.95,242.88,6.25071973]
[1731906133205,15.3992,242.95,242.89,14.4097]
[1731906133373,15.1022,242.95,242.89,14.4097]
[1731906133881,0.25098,242.94,242.89,14.4097]
[1731906134785,0.12549,242.94,242.92,6.25071973]
[1731906135987,0.12549,242.94,242.93,4.1164]
[1731906138290,15.3992,242.99,242.93,14.4074]
[1731906138469,160.2,243.04,242.98,6.25071973]
[1731906138672,160.2,243.05,243.0,6.25071973]
[1731906139069,15.3992,243.06,243.02,6.25071973]
[1731906139670,160.2,243.09,243.05,6.25071973]
[1731906139882,6.25071973,243.11,242.94,20.0]
[1731906140076,160.2,243.1,243.04,6.25071973]
[1731906140284,160.2,243.12,243.04,6.25071973]
[1731906140483,160.2,243.12,243.04,10.36511973]
[1731906141473,0.09367462,243.1,243.04,10.36511973]
[1731906141675,0.09367462,243.08,243.04,4.1144]
[1731906141874,0.21916462,243.08,243.04,4.1144]
[1731906142184,0.12549,243.07,243.04,4.1144]
[1731906142389,0.12549,243.07,243.02,20.65221973]
[1731906142571,0.21916462,243.08,243.02,14.4015]
[1731906142909,0.25098,243.03,243.0,6.25071973]
[1731906143488,160.2,243.06,243.0,6.25071973]
[1731906143695,0.25098,243.05,243.01,4.115]
[1731906143992,0.25098,243.05,243.0,6.25071973]
[1731906145088,0.09367462,243.02,242.99,10.2884]
[1731906145395,0.12549,242.99,242.94,6.25071973]